bitfinex-derivatives/quotes_ETHF0:USTF0_20251107
["timestamp","ask_amount","ask_price","bid_price","bid_amount"]
[1762492887732,3.2078,3355.1,3355.0,0.1445]
[1762492888240,3.2078,3355.1,3354.6,0.48317]
[1762492888728,3.2078,3355.1,3354.7,0.48317]
[1762492889126,0.48316,3354.8,3354.5,0.1445]
[1762492889326,3.2078,3354.7,3354.5,0.62769]
[1762492890834,3.2078,3354.7,3354.6,0.48318]
[1762492891536,3.2078,3354.7,3354.6,0.71648]
[1762492892737,3.2078,3355.2,3355.1,0.71641]
[1762492892938,0.00758843,3355.4,3355.0,0.1445]
[1762492892939,0.00758843,3355.4,3355.3,0.71638]
[1762492894941,0.00758843,3355.4,3355.3,0.48308]
[1762492895342,0.00758843,3355.4,3355.0,3.3523]
[1762492895637,0.48311,3355.1,3355.0,0.1445]
[1762492896044,0.48314,3354.9,3354.8,0.48315]
[1762492896341,0.48315,3354.8,3354.6,0.48318]
[1762492896543,3.69095,3354.8,3354.6,0.48318]
[1762492897246,3.2078,3354.8,3354.7,0.48317]
[1762492897445,3.69095,3354.8,3354.7,0.48317]
[1762492897744,3.69095,3354.8,3354.6,0.48318]
[1762492898046,3.69095,3354.8,3354.5,0.1445]
[1762492898936,3.69095,3354.8,3354.7,0.48317]
[1762492899546,3.69095,3354.8,3354.5,0.1445]
[1762492899746,3.2078,3354.8,3354.7,0.48317]
[1762492900243,0.00758843,3355.4,3355.3,0.72098]
[1762492902246,0.00758843,3355.4,3355.3,0.48308]
[1762492902451,0.00758843,3355.4,3355.0,0.1473]
[1762492902746,0.48311,3355.1,3355.0,0.63043]
[1762492903047,0.48311,3355.1,3355.0,0.1473]
[1762492904146,0.48311,3355.1,3355.0,0.63043]
[1762492904452,3.2078,3355.2,3355.1,0.72101]
[1762492905252,3.2078,3355.2,3355.0,0.1473]
[1762492905450,0.48311,3355.1,3355.0,0.63042]
[1762492905945,0.48311,3355.1,3355.0,0.1473]
[1762492906945,3.2078,3355.2,3355.1,0.48311]
[1762492907353,3.2078,3355.2,3355.0,0.1473]
[1762492907944,0.48311,3355.1,3355.0,0.1473]
[1762492908450,3.2078,3355.2,3355.0,0.1473]
[1762492908640,3.2078,3355.2,3355.1,0.72101]
[1762492909543,3.2078,3355.2,3355.1,0.48311]
[1762492910247,3.6909,3355.2,3355.1,0.48311]
[1762492911255,0.48311,3355.1,3355.0,0.1473]
[1762492911851,1.2157169,3355.1,3355.0,0.1473]
[1762492912948,0.48311,3355.1,3355.0,0.1473]
[1762492913946,3.2078,3355.2,3354.5,0.62769]
[1762492914156,3.69097,3354.8,3354.6,0.48317]
[1762492914352,0.48314,3355.0,3354.5,0.1445]
[1762492914551,0.48312,3355.1,3355.0,0.1473]
[1762492914849,3.69091,3355.2,3355.0,0.1473]
[1762492915048,3.2078,3355.2,3355.1,0.48311]
[1762492915254,4.42345086,3355.2,3355.1,0.48311]
[1762492915457,0.48311,3355.1,3355.0,0.1473]
[1762492917358,0.48311,3355.1,3355.0,0.63043]
[1762492918251,3.6909,3355.2,3355.1,0.48312]
[1762492918458,3.94038444,3355.2,3355.1,0.48312]
[1762492918661,3.2078,3355.2,3355.1,0.48312]
[1762492919051,3.6909,3355.2,3355.1,0.72102]
[1762492919253,3.6909,3355.2,3355.0,0.1473]
[1762492919451,0.48312,3355.1,3355.0,0.1473]
[1762492920547,0.48312,3355.1,3355.0,0.63043]
[1762492920956,0.48312,3355.1,3355.0,0.1473]
[1762492922063,3.2078,3355.2,3355.1,0.48312]
[1762492922264,3.2078,3355.2,3355.0,0.1473]
[1762492922265,0.48312,3355.1,3355.0,0.63043]
[1762492922463,0.48312,3355.1,3355.0,0.1473]
[1762492923568,0.48312,3355.1,3355.0,0.63043]
[1762492923966,0.00758843,3355.4,3355.3,0.72099]
[1762492924366,0.49065843,3355.4,3355.3,0.2379]
[1762492924572,0.49065843,3355.4,3355.0,0.1473]
[1762492925069,0.00758843,3355.4,3355.3,0.72099]
[1762492925263,0.49065843,3355.4,3355.3,0.2379]
[1762492926567,0.49065843,3355.4,3355.3,0.72099]
[1762492926864,0.00758843,3355.4,3355.3,0.72099]
[1762492927067,0.48309,3355.3,3355.1,0.48311]
[1762492927258,0.48312,3355.1,3355.0,0.1473]
[1762492927458,9.45312,3355.1,3355.0,0.1473]
[1762492927772,0.48318,3354.7,3354.3,3.2078]
[1762492928070,3.2078,3355.2,3355.1,0.72932]
[1762492928265,0.00758843,3355.4,3355.3,0.72929]
[1762492929063,0.48309,3355.3,3355.0,0.63482]
[1762492929269,0.48309,3355.3,3355.2,0.48311]
[1762492929966,0.48312,3355.1,3355.0,0.1517]
[1762492930173,3.69092,3355.1,3355.0,0.1517]
[1762492930369,0.48319,3354.6,3354.5,3.3523]
[1762492930670,3.69099,3354.6,3354.5,0.1445]
[1762492931260,4.42423608,3354.6,3354.5,0.1445]
[1762492931862,0.48327,3354.1,3354.0,0.1472]
[1762492933063,1.21618025,3354.1,3354.0,0.1472]
[1762492933265,1.53233735,3354.1,3354.0,0.1472]
[1762492933467,0.48334,3353.6,3353.5,0.14570286]
[1762492933869,3.2078,3353.7,3353.5,0.62905286]
[1762492934172,3.69113,3353.7,3353.5,0.14570286]
[1762492934872,8.969,3353.6,3353.5,0.14570286]
[1762492936376,8.969,3353.6,3353.5,0.00340286]
[1762492936671,0.48355,3352.2,3352.0,0.1517]
[1762492936869,0.65,3353.6,3352.5,0.1517]
[1762492937076,3.2078,3352.6,3352.5,0.1517]
[1762492937277,12.1788,3352.6,3352.5,0.1517]
[1762492937777,12.18174705,3352.6,3352.5,0.15378637]
[1762492938472,12.18274705,3352.6,3352.5,0.39998637]
[1762492938677,3.21074705,3352.6,3352.5,0.39998637]
[1762492939072,3.21074705,3352.6,3352.5,0.00208637]
[1762492939378,3.21074705,3352.6,3352.5,0.15378637]
[1762492940668,12.19074705,3352.6,3352.5,0.39998637]
[1762492941074,3.21074705,3352.6,3352.5,0.39998637]
[1762492941669,0.00294705,3352.6,3352.5,0.39998637]
[1762492941878,0.00294705,3352.6,3352.5,8.39998637]
[1762492942684,0.4834,3353.2,3353.0,0.1517]
[1762492943473,0.48597722,3353.2,3353.0,0.1517]
[1762492943877,0.48348,3352.6,3352.5,0.15378637]
[1762492944674,8.984,3352.6,3352.5,0.39998637]
[1762492944980,8.984,3352.6,3352.5,0.15378637]
[1762492945781,8.984,3352.6,3352.5,0.00208637]
[1762492946180,9.46748,3352.6,3352.5,0.00208637]
[1762492946776,9.46648,3352.6,3352.5,0.15378637]
[1762492948678,9.46548,3352.6,3352.5,0.15378637]
[1762492949179,9.46548,3352.6,3352.5,0.88347637]
[1762492949180,0.48348,3352.6,3352.5,0.88347637]
[1762492949479,3.2078,3352.8,3352.6,0.48348]
[1762492949785,3.69125,3352.8,3352.7,0.72967]
[1762492950084,3.2078,3352.8,3352.7,0.72967]
[1762492951279,3.69125,3352.8,3352.7,0.72967]
[1762492951483,3.2078,3352.8,3352.7,0.72967]
[1762492951686,3.69125,3352.8,3352.7,0.2462]
[1762492952184,3.69125,3352.8,3352.7,0.72967]
[1762492953285,3.69125,3352.8,3352.7,0.2462]
[1762492953488,0.48348,3352.6,3352.5,0.39998637]
[1762492953687,0.48348,3352.6,3352.5,0.88348637]
[1762492954487,0.48348,3352.6,3352.5,0.39998637]
[1762492954784,3.2078,3352.8,3352.7,0.72967]
[1762492955090,0.48341,3353.1,3353.0,0.1391]
[1762492956986,9.45841,3353.1,3353.0,0.1391]
[1762492961084,0.48341,3353.1,3353.0,0.3741]
[1762492961393,8.975,3353.1,3353.0,0.85752]
[1762492961589,3.21037722,3353.2,3353.1,0.71841]
[1762492961790,3.21037722,3353.2,3353.1,3.92621]
[1762492961791,0.00257722,3353.2,3353.1,3.92621]
[1762492961996,2.96033025,3354.2,3354.0,0.1491]
[1762492962292,0.48326,3354.1,3354.0,0.3841]
[1762492962996,0.48687351,3354.1,3354.0,0.3841]
[1762492963689,0.48687351,3354.1,3354.0,0.1491]
[1762492964995,0.48687351,3354.1,3354.0,0.3841]
[1762492966692,0.48687351,3354.1,3354.0,0.1491]
[1762492967392,0.00361351,3354.1,3354.0,0.63238]
[1762492967599,0.00361351,3354.1,3354.0,0.86738]
[1762492972795,0.00361351,3354.1,3354.0,1.53538]
[1762492972998,0.00446813,3354.4,3354.3,0.71824]
[1762492973200,0.00446813,3354.4,3354.3,3.92604]
[1762492973795,3.2078,3355.1,3355.0,0.3841]
[1762492974102,3.69381684,3355.1,3355.0,0.8706019]
[1762492974602,3.69381684,3355.1,3355.0,0.3874719]
[1762492974802,3.21069684,3355.1,3355.0,0.1524719]
[1762492975096,3.69381684,3355.1,3355.0,0.8706019]
[1762492975296,0.00289684,3355.1,3355.0,0.8706019]
[1762492976501,0.00289684,3355.1,3355.0,1.11040167]
[1762492977698,0.00289684,3355.1,3355.0,0.8706019]
[1762492978709,0.00289684,3355.1,3355.0,1.11227877]
[1762492979796,0.00289684,3355.1,3355.0,0.8706019]
[1762492981200,0.00446813,3355.4,3355.3,0.71809]
[1762492982299,3.2078,3355.9,3355.8,0.71802]
[1762492982505,3.69073,3356.4,3356.3,0.235]
[1762492982699,0.48296,3356.2,3356.1,0.235]
[1762492982906,0.48296,3356.2,3356.1,0.71798]
[1762492984708,3.69405936,3356.4,3356.3,0.71795]
[1762492986602,0.00332936,3356.4,3356.3,0.71795]
[1762492989204,0.48625936,3356.4,3356.3,0.71795]
[1762492989810,0.00332936,3356.4,3356.3,0.71795]
[1762492996209,0.48298,3356.1,3356.0,0.1491]
[1762492996415,0.48298,3356.1,3356.0,0.3874]
[1762492996712,0.48298,3356.1,3356.0,0.1491]
[1762492996907,0.48298,3356.1,3356.0,0.3874]
[1762492997107,0.48297,3356.2,3356.1,0.2383]
[1762492997406,0.48297,3356.2,3356.0,0.1491]
[1762492997407,0.48298,3356.1,3356.0,0.1491]
[1762492997713,0.48298,3356.1,3356.0,0.3874]
[1762492998115,0.48298,3356.1,3356.0,0.87039]
[1762492998316,3.21112936,3356.4,3356.3,0.2383]
[1762492998611,3.69063,3357.2,3357.1,0.2383]
[1762492999206,3.69063,3357.2,3357.0,0.1519]
[1762492999512,3.69291167,3357.2,3357.0,0.1519]
[1762492999719,0.4829,3356.6,3356.5,0.1519]
[1762492999904,3.6907,3356.6,3356.5,0.1519]
[1762493001104,3.2078,3356.6,3356.5,0.3902]
[1762493001918,0.48286,3356.9,3356.8,0.2383]
[1762493003215,0.4829,3356.6,3356.5,0.3902]
[1762493003716,3.2078,3357.0,3356.5,0.87312]
[1762493004011,3.2078,3356.6,3356.5,0.3902]
[1762493005004,3.51601886,3356.6,3356.5,0.1519]
[1762493005909,0.4829,3356.6,3356.5,0.1519]
[1762493006118,3.99911626,3356.6,3356.5,0.1519]
[1762493007317,0.48298,3356.1,3355.9,0.483]
[1762493007623,0.48298,3356.1,3355.8,0.00446813]
[1762493008005,3.2078,3356.2,3355.8,0.00446813]
[1762493008213,0.483,3355.9,3355.8,0.00446813]
[1762493008513,0.79171197,3355.9,3355.8,0.00446813]
[1762493009307,0.79180836,3355.9,3355.8,0.00446813]
[1762493009705,0.483,3355.9,3355.8,0.72578813]
[1762493009911,0.79180835,3355.9,3355.8,0.00446813]
[1762493010317,0.483,3355.9,3355.8,0.00446813]
[1762493010518,3.2078,3356.2,3355.8,0.48748813]
[1762493010718,0.48298,3356.1,3356.0,0.1519]
[1762493010921,3.2078,3356.6,3356.5,0.3902]
[1762493011220,3.6907,3356.6,3356.5,0.87312]
[1762493012313,3.6907,3356.6,3356.5,0.1519]
[1762493015324,3.6907,3356.6,3356.0,0.1519]
[1762493015325,0.48298,3356.1,3356.0,0.1519]
[1762493016027,3.2078,3356.2,3356.1,0.2354]
[1762493016625,0.48298,3356.1,3356.0,0.1519]
[1762493018318,3.2078,3356.2,3356.1,0.73398]
[1762493020125,3.2078,3356.6,3356.5,0.88631]
[1762493021222,3.69071,3356.6,3356.5,0.88632]
[1762493021424,3.2078,3356.6,3356.5,0.88632]
[1762493021727,3.2078,3357.0,3356.9,0.73386]
[1762493022326,0.00228167,3357.2,3357.1,0.73383]
[1762493022926,0.48510167,3357.2,3357.1,0.73383]
[1762493023627,0.48510167,3357.2,3357.1,0.251]
[1762493023829,0.48283,3357.1,3357.0,0.1524]
[1762493024424,0.48283,3357.1,3357.0,0.4034]
[1762493025728,0.48283,3357.1,3357.0,0.88625]
[1762493027726,0.48510167,3357.2,3357.1,0.73383]
[1762493027923,0.00228167,3357.2,3357.1,0.73383]
[1762493028132,0.48510167,3357.2,3357.1,0.73383]
[1762493028727,0.00228167,3357.2,3357.1,0.73383]
[1762493029823,0.48283,3357.1,3357.0,0.63525]
[1762493030117,0.48283,3357.1,3357.0,0.4034]
[1762493030323,0.48283,3357.1,3357.0,0.1524]
[1762493030527,0.00228167,3357.2,3357.1,0.73383]
[1762493032530,0.48510167,3357.2,3357.1,0.73383]
[1762493032931,0.48510167,3357.2,3357.1,0.251]
[1762493033829,0.48510167,3357.2,3357.1,0.73383]
[1762493034029,0.00228167,3357.2,3357.1,0.73383]
[1762493035231,0.48510167,3357.2,3357.1,0.73383]
[1762493036334,0.00228167,3357.2,3357.1,0.73383]
[1762493037926,0.00228167,3357.2,3357.1,0.9743404]
[1762493038731,0.00228167,3357.2,3357.1,0.73383]
[1762493039135,0.48283,3357.1,3357.0,0.1524]
[1762493042138,0.4829,3356.6,3356.5,0.1524]
[1762493042331,0.48298,3356.1,3356.0,0.1519]
[1762493043235,3.2078,3356.2,3356.1,0.48298]
[1762493043438,3.2078,3356.2,3356.0,0.1519]
[1762493044633,0.48298,3356.1,3356.0,0.1519]
[1762493046041,3.2078,3356.2,3356.1,0.71888]
[1762493047342,0.48292,3356.5,3356.4,0.71883]
[1762493048242,0.48292,3356.5,3356.4,0.2359]
[1762493048437,0.48292,3356.5,3356.1,0.48297]
[1762493048438,0.48296,3356.3,3356.2,0.2359]
[1762493051943,0.48296,3356.3,3356.2,0.71886]
[1762493052338,0.48296,3356.3,3356.2,0.2359]
[1762493052538,0.48296,3356.3,3356.2,0.71886]
[1762493053545,0.48296,3356.3,3356.2,0.2359]
[1762493054048,0.48296,3356.3,3356.2,0.71886]
[1762493054746,0.48297,3356.2,3356.0,0.63489]
[1762493054944,0.48298,3356.1,3356.0,0.3878]
[1762493055251,0.48298,3356.1,3356.0,0.87079]
[1762493055642,0.48296,3356.3,3356.2,0.2359]
[1762493056547,0.48296,3356.3,3356.2,0.71886]
[1762493057146,0.48296,3356.3,3356.2,0.2359]
[1762493057544,0.48298,3356.1,3356.0,0.1519]
[1762493057752,3.2078,3356.6,3356.0,0.3878]
[1762493057950,3.6907,3356.6,3356.5,0.1436]
[1762493059454,3.6907,3356.6,3356.0,0.1519]
[1762493059455,0.48298,3356.1,3356.0,0.1519]
[1762493060162,0.48298,3356.1,3356.0,0.3878]
[1762493061465,3.2078,3356.2,3356.1,0.71888]
[1762493062165,3.69076,3356.2,3356.1,0.2359]
[1762493062767,3.69076,3356.2,3356.1,0.71888]
[1762493063867,3.2078,3356.2,3356.1,0.71888]
[1762493064069,3.2078,3356.6,3356.5,0.86242]
[1762493064867,3.6907,3356.6,3356.5,0.3795]
[1762493065261,3.6907,3356.6,3356.5,0.1436]
[1762493066667,3.6907,3356.6,3356.5,0.62652]
[1762493066863,3.6907,3356.6,3356.5,0.86242]
[1762493067160,3.6907,3356.6,3356.5,0.1436]
[1762493073772,0.48298,3356.1,3356.0,0.1519]
[1762493074471,0.48298,3356.1,3356.0,0.3878]
[1762493075074,0.48297,3356.2,3356.1,0.73627]
[1762493075568,0.48295,3356.3,3356.2,0.73626]
[1762493078966,3.2078,3357.0,3356.5,0.1384]
[1762493079172,0.30231416,3356.9,3356.5,0.1384]
[1762493079369,0.4829,3356.6,3356.5,0.1384]
[1762493079568,0.4829,3356.6,3356.5,0.375]
[1762493080170,0.4829,3356.6,3356.5,0.85792]
[1762493080467,0.4829,3356.6,3356.5,0.375]
[1762493085073,3.6907,3356.6,3356.5,0.1384]
[1762493091372,3.2078,3357.0,3356.8,0.2366]
[1762493091577,3.2078,3357.0,3356.9,0.2366]
[1762493092174,3.2078,3357.0,3356.9,0.71946]
[1762493092474,3.69065,3357.0,3356.9,0.71946]
[1762493092680,3.69065,3357.0,3356.9,0.2366]
[1762493092872,3.69065,3357.0,3356.9,0.71946]
[1762493093075,3.2078,3357.0,3356.9,0.71946]
[1762493094180,3.69065,3357.0,3356.9,0.71946]
[1762493095278,3.69065,3357.0,3356.9,0.2366]
[1762493097281,3.2078,3357.0,3356.9,0.71946]
[1762493097481,0.00228167,3357.2,3357.0,0.1384]
[1762493098284,0.48510167,3357.2,3357.1,0.71943]
[1762493099085,0.48510167,3357.2,3357.0,0.1384]
[1762493099086,0.48283,3357.1,3357.0,0.1384]
[1762493101086,0.00228167,3357.2,3357.1,0.2366]
[1762493101281,0.00228167,3357.2,3357.1,0.71943]
[1762493101478,0.00446813,3357.4,3357.3,0.4828]
[1762493101684,0.00446813,3357.4,3357.3,0.7194]
[1762493101885,0.00446813,3357.4,3357.0,3.3462]
[1762493102080,3.69506813,3357.4,3357.0,0.1384]
[1762493102285,0.4828,3357.3,3357.0,0.1384]
[1762493102584,0.00351096,3357.3,3357.0,0.1384]
[1762493102983,0.48282,3357.2,3357.0,0.1384]
[1762493103385,0.48282,3357.2,3357.0,0.62124]
[1762493105291,0.48282,3357.2,3357.1,0.2366]
[1762493105488,0.00351096,3357.3,3357.1,0.71942]
[1762493105689,0.48632096,3357.3,3357.1,0.71942]
[1762493106480,0.48282,3357.2,3357.1,0.71942]
[1762493107190,0.48282,3357.2,3357.0,0.1384]
[1762493107191,0.00351096,3357.3,3357.2,0.72452]
[1762493107693,0.48631096,3357.3,3357.2,0.72452]
[1762493107892,0.48631096,3357.3,3357.2,0.2417]
[1762493108488,0.48631096,3357.3,3357.2,0.72452]
[1762493110791,0.48631096,3357.3,3357.2,0.2417]
[1762493110998,0.48631096,3357.3,3357.0,0.1384]
[1762493111296,0.48631096,3357.3,3357.2,0.72452]
[1762493111693,0.00351096,3357.3,3357.0,0.62125]
[1762493111895,0.48283,3357.1,3357.0,0.1384]
[1762493112499,0.4829,3356.6,3356.5,0.1384]
[1762493113299,0.48287,3356.9,3356.7,0.72458]
[1762493113496,0.48284,3357.1,3357.0,0.72454]
[1762493113695,0.48284,3357.1,3357.0,0.86204]
[1762493115401,3.2078,3357.2,3357.1,0.72453]
[1762493116298,3.69062,3357.2,3357.1,0.2417]
[1762493117107,0.48283,3357.1,3357.0,0.1375]
[1762493118704,0.48283,3357.1,3357.0,0.62035]
[1762493118910,0.48283,3357.1,3357.0,0.1375]
[1762493120413,5.9576,3357.0,3356.1,0.5822157]
[1762493120606,0.48305,3355.6,3355.5,0.1375]
[1762493120811,3.69085,3355.6,3355.5,0.1375]
[1762493121017,0.48312,3355.1,3355.0,0.1408719]
[1762493121203,3.991585,3355.1,3355.0,0.1408719]
[1762493121515,0.48317,3354.8,3354.5,0.3792]
[1762493121815,0.48317,3354.8,3354.7,0.2417]
[1762493122016,3.69097,3354.8,3354.7,0.2417]
[1762493122413,3.69331886,3354.8,3354.7,0.24439693]
[1762493123813,3.21014886,3354.8,3354.7,0.24439693]
[1762493124012,0.00234886,3354.8,3354.7,3.45219693]
[1762493124220,3.69085,3355.6,3355.5,0.2417]
[1762493124411,3.2078,3355.6,3355.5,0.3792]
[1762493125220,3.21091263,3355.6,3355.5,0.3792]
[1762493130221,3.21091263,3355.6,3355.5,0.1375]
[1762493130411,0.48312,3355.1,3355.0,0.1375]
[1762493130614,3.69092,3355.1,3355.0,0.1375]
[1762493131016,3.69092,3355.1,3355.0,0.3792]
[1762493131622,3.69092,3355.1,3355.0,0.1375]
[1762493136124,3.2078,3355.1,3354.5,0.13567994]
[1762493136325,3.512,3355.4,3354.5,0.13567994]
[1762493136326,3.2078,3354.6,3354.5,0.13567994]
[1762493137028,3.2078,3354.6,3354.5,0.13848736]
[1762493137228,3.69099,3354.6,3354.5,0.13848736]
[1762493137429,3.69099,3354.6,3354.5,0.39268736]
[1762493140727,3.69099,3354.6,3354.5,0.13848736]
[1762493141724,3.69099,3354.6,3354.5,0.38488736]
[1762493142025,3.2078,3354.6,3354.5,0.86809736]
[1762493142232,3.69099,3354.6,3354.5,0.38488736]
[1762493142525,3.2078,3354.6,3354.5,8.86809736]
[1762493142733,0.48315,3354.9,3354.8,0.72956]
[1762493142923,3.2078,3355.0,3354.9,0.72955]
[1762493143128,2.4448,3355.0,3354.9,0.72955]
[1762493143925,2.92793,3355.0,3354.9,0.72955]
[1762493144123,2.92793,3355.0,3354.9,0.2464]
[1762493144524,2.92793,3355.0,3354.9,0.72955]
[1762493146131,2.92793,3355.0,3354.9,0.2464]
[1762493147530,2.92793,3355.0,3354.9,0.72955]
[1762493148935,2.92793,3355.0,3354.9,0.2464]
[1762493149335,2.4448,3355.0,3354.9,0.72955]
[1762493149533,0.48311,3355.2,3355.1,0.72952]
[1762493150527,0.48311,3355.2,3355.1,0.2464]
[1762493151131,0.48311,3355.2,3355.1,0.72952]
[1762493151332,0.48311,3355.2,3355.1,0.2464]
[1762493151938,0.48311,3355.2,3355.1,0.72952]
[1762493152237,0.48309,3355.3,3355.2,0.4831]
[1762493152438,0.48309,3355.3,3355.2,0.2478]
[1762493154039,0.48312,3355.1,3355.0,0.1424]
[1762493154431,0.48312,3355.1,3355.0,0.3902]
[1762493155939,0.48312,3355.1,3355.0,0.87333]
[1762493156242,3.69088,3355.4,3355.3,0.2478]
[1762493156839,3.69088,3355.4,3355.3,0.73089]
[1762493157241,3.69088,3355.4,3355.3,0.2478]
[1762493158844,0.48312,3355.1,3355.0,0.1424]
[1762493160539,0.48319,3354.6,3354.5,0.13848736]
[1762493160747,3.69099,3354.6,3354.5,0.13848736]
[1762493161746,0.48326,3354.1,3354.0,0.1375]
[1762493161941,3.69106,3354.1,3354.0,0.1375]
[1762493162645,3.69106,3354.1,3353.5,0.3853]
[1762493162646,0.48334,3353.6,3353.5,0.3853]
[1762493162851,0.48334,3353.6,3353.5,0.1408905]
[1762493164046,0.48334,3353.6,3353.5,0.3886905]
[1762493167259,0.48334,3353.6,3353.5,0.1408905]
[1762493167454,0.48334,3353.6,3353.5,0.3854905]
[1762493170957,0.48334,3353.6,3353.5,0.8688405]
[1762493172060,0.48334,3353.6,3353.5,0.3854905]
[1762493172856,0.48334,3353.6,3353.5,0.1408905]
[1762493173063,0.48334,3353.6,3353.5,0.04950244]
[1762493173552,0.48334,3353.6,3353.5,0.29410244]
[1762493176055,3.2078,3353.7,3353.6,0.72794]
[1762493176256,3.69112,3353.7,3353.6,0.2446]
[1762493176461,0.48334,3353.6,3353.5,0.04950244]
[1762493177258,0.48334,3353.6,3353.5,0.29410244]
[1762493178466,0.48334,3353.6,3353.5,0.04950244]
[1762493179068,0.48338,3353.3,3353.2,0.00446813]
[1762493179269,3.2078,3353.3,3353.0,0.1424]
[1762493179467,0.48341,3353.1,3353.0,0.1424]
[1762493179868,0.48341,3353.1,3353.0,0.19190519]
[1762493180066,0.48584777,3353.1,3353.0,0.19418321]
[1762493181178,0.48348,3352.6,3352.5,0.1424]
[1762493181379,3.69128,3352.6,3352.5,0.1424]
[1762493181983,3.69128,3352.6,3352.5,0.19190519]
[1762493182184,3.69128,3352.6,3352.5,0.1424]
[1762493182382,3.69128,3352.6,3352.5,0.19495613]
[1762493182689,3.2078,3352.6,3352.5,0.43955613]
[1762493187988,3.2078,3352.6,3352.5,0.92304613]
[1762493188793,3.69128,3352.6,3352.5,0.92304613]
[1762493189085,0.48347,3352.7,3352.6,0.2446]
[1762493189289,0.48347,3352.7,3352.6,0.72808]
[1762493189489,0.48344,3352.9,3352.8,0.2446]
[1762493189884,0.48344,3352.9,3352.8,0.29410519]
[1762493190291,0.00243777,3353.1,3353.0,0.3869]
[1762493190589,0.00243777,3353.1,3353.0,0.43640519]
[1762493191384,0.00243777,3353.1,3353.0,0.91982519]
[1762493192792,3.64407258,3353.6,3353.5,0.87025]
[1762493193789,3.64698491,3353.6,3353.5,0.87025]
[1762493195596,3.16364491,3353.6,3353.5,0.87025]
[1762493198098,0.00291233,3353.6,3353.5,0.87025]
[1762493198986,0.48625233,3353.6,3353.5,0.87025]
[1762493200097,0.00291233,3353.6,3353.5,0.87025]
[1762493203204,0.48625233,3353.6,3353.5,0.87025]
[1762493203398,0.00291233,3353.6,3353.5,0.87025]
[1762493204201,0.00446813,3353.9,3353.8,0.72491]
[1762493205303,0.00677773,3353.9,3353.8,0.72491]
[1762493206306,0.48323,3354.4,3354.3,0.72482]
[1762493206498,3.2078,3354.5,3354.4,0.72482]
[1762493207004,0.48321,3354.5,3354.4,0.72482]
[1762493207204,0.48560318,3354.5,3354.4,0.72482]
[1762493209202,0.00239318,3354.5,3354.4,0.72482]
[1762493209403,0.48560318,3354.5,3354.4,0.72482]
[1762493210502,0.00239318,3354.5,3354.4,0.72482]
[1762493211005,0.48560318,3354.5,3354.4,0.72482]
[1762493211414,0.00239318,3354.5,3354.4,0.72482]
[1762493211599,0.48560318,3354.5,3354.4,0.72482]
[1762493212206,0.00239318,3354.5,3354.4,0.72482]
[1762493213009,0.48560318,3354.5,3354.4,0.72482]
[1762493213209,0.00239318,3354.5,3354.4,0.72482]
[1762493215910,0.48560318,3354.5,3354.4,0.72482]
[1762493216413,3.69340318,3354.5,3354.4,0.2416]
[1762493216906,3.69340318,3354.5,3354.4,0.72482]
[1762493217506,0.00239318,3354.5,3354.4,0.72482]
[1762493217707,0.00446813,3354.8,3354.7,0.72478]
[1762493218800,0.00800223,3354.8,3354.7,0.72478]
[1762493219011,0.00800223,3354.8,3354.5,3.3527]
[1762493219012,3.69089,3355.3,3355.2,0.72471]
[1762493219407,0.48308,3355.4,3355.3,0.72469]
[1762493219604,0.48308,3355.4,3355.0,0.1449]
[1762493219605,0.48306,3355.6,3355.5,0.1449]
[1762493219908,0.48306,3355.6,3355.5,0.3865]
[1762493220213,0.48637296,3355.6,3355.5,0.38885466]
[1762493221517,0.48637296,3355.6,3355.5,0.14725466]
[1762493225010,0.48637296,3355.6,3355.5,0.38885466]
[1762493225513,0.48637296,3355.6,3355.5,0.87191466]
[1762493226713,1.07573317,3356.5,3355.5,0.87191466]
[1762493226714,3.2078,3356.5,3356.4,0.71653]
[1762493227817,3.20996506,3356.5,3356.4,0.71653]
[1762493228314,3.20996506,3356.5,3356.4,0.2336]
[1762493230315,0.48296,3356.2,3356.1,0.00446813]
[1762493230520,0.48296,3356.2,3356.1,0.23806813]
[1762493231411,0.48296,3356.2,3356.1,0.00446813]
[1762493237225,6.44216,3356.2,3356.1,0.00446813]
[1762493237427,0.48298,3356.1,3356.0,0.1449]
[1762493237626,4.76406751,3356.1,3356.0,0.1449]
[1762493238129,0.48305,3355.6,3355.5,0.14725466]
[1762493238330,3.69085,3355.6,3355.5,0.14725466]
[1762493239228,3.69085,3355.6,3355.5,0.38085466]
[1762493244635,3.2078,3355.6,3355.5,0.86391466]
[1762493245237,3.69085,3355.6,3355.5,0.86391466]
[1762493246127,3.2078,3355.6,3355.5,0.86391466]
[1762493246633,3.69085,3355.6,3355.5,0.38085466]
[1762493246930,3.69085,3355.6,3355.5,0.14725466]
[1762493248934,3.69085,3355.6,3355.5,0.38085466]
[1762493249135,3.69085,3355.6,3355.5,0.86391466]
[1762493249336,3.2078,3355.6,3355.5,0.86391466]
[1762493250236,3.69079,3356.0,3355.9,0.2336]
[1762493251437,3.69079,3356.0,3355.6,0.2336]
[1762493251438,0.48303,3355.7,3355.6,0.2336]
[1762493252035,0.48303,3355.7,3355.6,0.71665]
[1762493253841,3.69079,3356.0,3355.9,0.2336]
[1762493254038,0.48305,3355.6,3355.5,0.86391466]
[1762493254739,0.48305,3355.6,3355.5,0.38085466]
[1762493264538,0.48305,3355.6,3355.5,0.86391466]
[1762493266046,3.2078,3356.0,3355.6,0.72685]
[1762493266245,3.2078,3356.0,3355.5,0.14725466]
[1762493266246,0.48302,3355.8,3355.5,0.14725466]
[1762493266451,0.483,3355.9,3355.5,0.14725466]
[1762493266639,3.2078,3356.0,3355.5,0.14725466]
[1762493266842,0.48305,3355.6,3355.5,0.39105466]
[1762493268158,3.2078,3356.4,3356.3,0.2438]
[1762493268345,4.76214325,3356.4,3356.3,0.2438]